Cogmind - Beta 14 @@@ ROGUE MODE // 2024.11.30 @ 00:24:17 Player: UnderDoug Result: Destroyed by 3X-0WT(R) with Subdweller Machine Gun Performance ------------- Evolutions (0) 0 Regions Visited (2) 400 Robots Destroyed (24) 120 Value Destroyed (703) 703 Prototype IDs (0) 0 Alien Tech Used (0) 0 Bonus (0) 0 TOTAL SCORE: 1223 Bonus ------- None Cogmind --------- Core Integrity 0/250 Matter 270/300 Energy 156/160 System Corruption 0% Temperature Cool (0) Movement Rolling (90) Location -10/Subcaves Parts ------- > --- POWER (1) -------- Light Nuclear Core > --- PROPULSION (2) --- Wheel Compact Wheel > --- UTILITY (2) ------ Medium Storage Unit Structural Scanner > --- WEAPON (2) ------- Particle Gun Grenade Launcher > --- INVENTORY (10) --- Ion Engine Light Ion Engine Light Ion Engine Aluminum Leg Aluminum Leg Medium Storage Unit Light Assault Rifle Subdweller Machine Gun Peak State ------------ > --- POWER ------------ Light Nuclear Core > --- PROPULSION ------- Compact Wheel Compact Wheel > --- UTILITY ---------- Medium Storage Unit Structural Scanner > --- WEAPON ----------- Small Laser Particle Gun > --- INVENTORY -------- Ion Engine Light Ion Engine Light Ion Engine Light Nuclear Core Aluminum Leg Aluminum Leg Medium Storage Unit Grenade Launcher [Rating: 11] Favorites ----------- Power Light Ion Engine Engine Light Ion Engine Power Core Light Nuclear Core Propulsion Compact Wheel Treads Light Treads Wheel Compact Wheel Utility Structural Scanner Device Structural Scanner Storage Medium Storage Unit Weapon Light Assault Rifle Energy Gun Particle Gun Ballistic Gun Light Assault Rifle Launcher Grenade Launcher Build | -11 -10 -10 ------- Run | Yrd Mat Sub Slots Evolved . | . . . Power . | . . . Propulsion . | . . . Utility . | . . . Weapon . | . . . Parts Attached 35 | 6 27 2 Power 6 | 1 4 1 Engine 4 | 1 3 . Core 2 | . 1 1 Reactor . | . . . Propulsion 10 | 2 7 1 Treads 6 | 2 4 . Leg . | . . . Wheel 4 | . 3 1 Hover . | . . . Flight . | . . . Utility 3 | 1 2 . Device 1 | . 1 . Storage 2 | 1 1 . Processor . | . . . Hackware . | . . . Protection . | . . . Artifact . | . . . Weapon 16 | 2 14 . Energy Gun 3 | . 3 . Energy Cannon . | . . . Ballistic Gun 8 | 2 6 . Ballistic Cannon . | . . . Launcher 5 | . 5 . Special Weapon . | . . . Impact Weapon . | . . . Slashing Weapon . | . . . Piercing Weapon . | . . . Special Melee Weapon . | . . . Unidentified Prototypes . | . . . Parts Lost 8 | . 7 1 Power 2 | . 2 . Propulsion 2 | . 1 1 Utility . | . . . Weapon 4 | . 4 . Highest Loss Streak 3 | . 3 1 To Critical Strikes . | . . . Average Slot Usage (%) 95 | . 95 97 Engine 6 | . 9 . Core 5 | . 2 11 Treads 8 | . 11 . Wheel 18 | . 15 27 Device 13 | . 13 14 Storage 14 | . 14 14 Energy Gun 7 | . 5 14 Ballistic Gun 13 | . 18 . Launcher 6 | . 3 14 Peak Build Rating 11 | 6 11 10 Average Rating 7 | 4 7 9 On Entrance 4 | . 6 8 Naked Turns . | . . . Heaviest Build 22 | 11 20 22 Greatest Support 40 | 40 40 32 Greatest Overweight (x) 5 | . 5 1 Average Overweight (x) . | . . . Largest Inventory Capacity 10 | 8 10 10 Average Capacity 9 | 7 9 10 Most Carried 10 | 6 10 10 Average Carried 7 | 3 7 8 Final Capacity 10 | 8 10 10 Final Carried 9 | 6 9 8 Class Distribution -------------------- 100% | Mutant Dominant Class ---------------- Mutant | -10/Materials Mutant | -10/Subcaves Resources | -11 -10 -10 ----------- Run | Yrd Mat Sub Matter Collected 740 | 152 496 92 Remotely . | . . . Salvage Created 725 | . 628 97 Parts 43 | . 38 5 Haulers Intercepted . | . . . Recyclers Shooed . | . . . Parts Field Recycled . | . . . Retrieved Matter . | . . . Parts Self-Destructed . | . . . Prevented . | . . . Kills | -11 -10 -10 ------- Run | Yrd Mat Sub Combat Hostiles Destroyed 19 | . 15 4 Guns 15 | . 15 . AOE 4 | . . 4 Classes Destroyed 7 | . 6 1 Worker 1 | . 1 . Tunneler 1 | . 1 . Operator 1 | . 1 . Watcher 2 | . 2 . Swarmer 3 | . 3 . Grunt 12 | . 12 . Subdweller 4 | . . 4 Best Kill Streak 4 | . 4 2 Combat Bots Only 3 | . 3 2 Max Kills in Single Turn 2 | . 1 2 Gunslinging . | . . . Exploded 2 | . . 2 Melee . | . . . Uniques/NPCs Destroyed . | . . . Combat | -11 -10 -10 -------- Run | Yrd Mat Sub Hostile Shots Fired 140 | . 132 8 Missed 51 | . 47 4 Damage Taken 1176 | . 1070 106 Core 264 | . 228 36 Absorbed by Shields . | . . . Core Remaining (%) 100 | 100 . . Volleys Fired 76 | . 67 9 Largest 2 | . 2 2 Hottest 105 | . 105 95 Shots Fired 137 | . 119 18 Gun 125 | . 116 9 Cannon . | . . . Launcher 12 | . 3 9 Special . | . . . Kinetic 81 | . 81 . Thermal 44 | . 35 9 Explosive 12 | . 3 9 Electromagnetic . | . . . Robot Hit Streak 8 | . 8 8 Robot Miss Streak 3 | . 3 1 Penetration Max . | . . . Secondary Targets . | . . . Shots Hit Robots 79 | . 72 7 Core Hits 46 | . 38 8 Critical Kills . | . . . Critical Parts Destroyed . | . . . Critical Strikes . | . . . Melee Attacks . | . . . Impact . | . . . Slashing . | . . . Piercing . | . . . Sneak Attacks . | . . . Combat Hostiles . | . . . Follow-up Attacks . | . . . Damage Inflicted 1308 | . 875 433 Guns 813 | . 765 48 Cannons . | . . . Explosions 495 | . 110 385 Melee . | . . . Ramming . | . . . Kinetic 538 | . 538 . Thermal 275 | . 227 48 Explosive 495 | . 110 385 Electromagnetic . | . . . Impact . | . . . Slashing . | . . . Piercing . | . . . Highest Corruption . | . . . Average Corruption . | . . . Corruption Purged . | . . . Corruption Blocked . | . . . Overload Shots . | . . . Overflow Damage . | . . . Projectiles . | . . . Explosions . | . . . Melee . | . . . Knockbacks . | . . . Impact . | . . . Kinetic . | . . . Secondary . | . . . Self-Inflicted Damage 73 | . 55 18 Shots 4 | . 2 2 Rammed . | . . . Targets Rammed . | . . . Kicked . | . . . Crushed . | . . . Highest Temperature 275 | . 275 . Average Temperature 96 | . 96 . Received Heat Transfer 489 | . 480 9 Effects 1 | . 1 . Energy Bleed 1 | . 1 . Siege Activations . | . . . Robots Corrupted . | . . . Combat Hostiles . | . . . Parts Fried . | . . . Impact Corruptions . | . . . Robots Melted . | . . . Combat Hostiles . | . . . Parts Melted . | . . . Heat Transferred 632 | . 521 111 Parts Sabotaged . | . . . Parts Stolen . | . . . Parts Stripped . | . . . Power Chain Reactions . | . . . Alert | -11 -10 -10 ------- Run | Yrd Mat Sub Peak Influence 312 | . 312 . Initial . | . . . Average 113 | . 124 . Maximum Alert Level 1 | . 1 . Low Security (%) 79 | 100 77 . Level 1 20 | . 22 . Level 2 . | . . . Level 3 . | . . . Level 4 . | . . . Level 5 . | . . . High Security . | . . . Max Security . | . . . Squads Dispatched 5 | . 5 . Investigation 2 | . 2 . Extermination . | . . . Reinforcement 3 | . 3 . Assault . | . . . Garrison . | . . . Intercept . | . . . Searches Triggered . | . . . Construction Impeded . | . . . Haulers Reinforced . | . . . Active Scanning Responses . | . . . Cargo Convoy Interrupts . | . . . Stealth | -11 -10 -10 --------- Run | Yrd Mat Sub Distress Signals . | . . . Communications Jammed . | . . . Distress Signals . | . . . Times Spotted 32 | . 27 5 Peak Tracking Total 4 | . 4 2 Tactical Retreats 3 | . 3 . Traps | -11 -10 -10 ------- Run | Yrd Mat Sub Traps Triggered 5 | . 5 . Indirectly . | . . . Trap Hack Attempts . | . . . Triggered . | . . . Disarmed . | . . . Reprogrammed 4 | . 4 . Reused 1 | . 1 . Traps Extracted . | . . . Installed . | . . . Triggered 1 | . 1 . Machines | -11 -10 -10 ---------- Run | Yrd Mat Sub Machines Disabled 1 | . 1 . Max in Single Turn 1 | . 1 . Machines Repaired . | . . . Machines Dismantled . | . . . Machines Sabotaged . | . . . Overloaded Fab Kills . | . . . Hacking | -11 -10 -10 --------- Run | Yrd Mat Sub Machines Accessed 2 | . 2 . Terminals 2 | . 2 . Fabricators . | . . . Repair Stations . | . . . Recycling Units . | . . . Scanalyzers . | . . . Garrison Access . | . . . Total Hacks 7 | . 7 . Successful 3 | . 3 . Failed 4 | . 4 . Catastrophic 2 | . 2 . Database Lockouts . | . . . Manual . | . . . Terminals 7 | . 7 . Fabricators . | . . . Repair Stations . | . . . Recycling Units . | . . . Scanalyzers . | . . . Garrison Access . | . . . Terminal Hacks 3 | . 3 . Branch Access Points 1 | . 1 . Locate Traps 1 | . 1 . Reprogram Traps 1 | . 1 . Fabricator Hacks . | . . . Repair Station Hacks . | . . . Recycling Unit Hacks . | . . . Scanalyzer . | . . . Garrison Access Hacks . | . . . Unauthorized Hacks . | . . . Terminals . | . . . Fabricators . | . . . Repair Stations . | . . . Recycling Units . | . . . Scanalyzers . | . . . Garrison Access . | . . . Data Cores Recovered . | . . . Used . | . . . Hacking Detections 2 | . 2 . Full Trace Events 1 | . 1 . Feedback Events . | . . . Feedback Blocked . | . . . Robot Schematics Acquired . | . . . Robots Built . | . . . Authchips . | . . . Time . | . . . Total Robot Build Rating . | . . . Part Schematics Acquired . | . . . Parts Built . | . . . Authchips . | . . . Time . | . . . Total Part Build Rating . | . . . Parts Repaired . | . . . Time . | . . . Parts Recycled . | . . . Recycled Matter . | . . . Retrieved Matter . | . . . Retrieved Components . | . . . Parts Scanalyzed . | . . . Part Schematics Acquired . | . . . Parts Damaged . | . . . Bothacking | -11 -10 -10 ------------ Run | Yrd Mat Sub Used RIF Installer . | . . . Robots Hacked . | . . . Non-combat . | . . . Combat . | . . . Robot Hacks Applied . | . . . Relay Couplers Released . | . . . Fabnet Peak Effective % . | . . . Robots Rewired . | . . . Allies Hacked . | . . . Hacks Repelled . | . . . Allies | -11 -10 -10 -------- Run | Yrd Mat Sub Total Allies . | . . . Largest Group . | . . . Highest-Rated Group . | . . . Highest-Rated Ally . | . . . Total Orders . | . . . Ally Attacks . | . . . Total Damage . | . . . Kills . | . . . Allies Corrupted . | . . . Allies Melted . | . . . Intel | -11 -10 -10 ------- Run | Yrd Mat Sub Robot Analysis Total . | . . . Derelict Logs Recovered . | . . . Drone Launches . | . . . Drone Recoveries . | . . . Exploration | -11 -10 -10 ------------- Run | Yrd Mat Sub Turns Passed 1396 | 93 944 359 Spaces Moved 929 | 51 517 361 Core 3 | 2 1 . Treads 251 | 49 202 . Legs . | . . . Wheels 675 | . 314 361 Hover . | . . . Flight . | . . . Fastest Speed 50 | 50 90 90 Average Speed 110 | 155 119 91 Slowest Speed 300 | 160 300 115 Overloaded Moves . | . . . Propulsion Burnouts . | . . . Robots Hopped . | . . . Cave-ins Triggered . | . . . Exploration Rate (%) 37 | 4 83 24 Regions Visited 2 Branch Regions 1 Pre-discovered Areas . | . . . Known Exits Taken . | . . . Unknown Exits Taken 2 | 1 1 . Scrap Searched . | . . . Spaces Dug . | . . . Terrain Destroyed 46 | . 7 39 Melee . | . . . Projectile . | . . . AOE 46 | . 7 39 Terrain Rammed . | . . . Walls Destroyed . | . . . Machines Disabled . | . . . Actions | -11 -10 -10 --------- Run | Yrd Mat Sub Total 1162 | 62 727 373 Wait 100 | . 100 . Move 927 | 50 516 361 Hop . | . . . Pick Up 18 | 6 11 1 Fast Attach 19 | 6 13 . Attach 8 | . 6 2 Detach . | . . . Swap 8 | . 8 . Drop 6 | . 6 . Fire 76 | . 67 9 Melee . | . . . Ram . | . . . Kick . | . . . Crush . | . . . Escape Stasis . | . . . Rewire . | . . . Trap . | . . . Miscellaneous . | . . . Route ------- -11/Scrapyard -10/Materials (discovered 5 exits: [*Mat x3] / *Min / [*Sub]) -10/Subcaves History --------- Turn | Location | Event 9 | -11/Scrapyard | Discovered new exit (range 16) 94 | -11/Scrapyard | Entered Materials 200 | -10/Materials | Discovered new exit (range 9) 239 | -10/Materials | Discovered new exit (range 5) 308 | -10/Materials | Build established: Mutant 452 | -10/Materials | Discovered new exit (range 5) 689 | -10/Materials | Core integrity fell below 50% 914 | -10/Materials | Core integrity fell below 20% 954 | -10/Materials | Lost 3 parts (1p2w) 957 | -10/Materials | Discovered new exit (range 11) 966 | -10/Materials | Identified exit to Mines 1010 | -10/Materials | Discovered new exit (range 14) 1038 | -10/Materials | Entered Subcaves 1397 | -10/Subcaves | Destroyed by 3X-0WT(R) with Subdweller Machine Gun Last Messages --------------- AMBIENT_HEAT=-10 GOAL=ESCAPE QG-YTE(u) builds Twisted Machinery. Com. Wheel destroyed. QG-YTE(u) builds Twisted Machinery. DD-9CZ(R) destroyed. OP-UZZ(R) destroyed. QG-YTE(u) builds Twisted Machinery. Acquired 15 matter. Acquired 22 matter. Acquired Sub. Machine Gun. The unstable cave ceiling collapses. NX-GJB(z): "She is not going to be happy we haven't found any suitable candidates yet." Y2-5HK(R) destroyed. XE-MP8(R) destroyed. Subatomizers dissect the Disposable Heat Sink. Acquired 35 matter. Acquired 20 matter. Subatomizers dissect the Disposable Heat Sink. Map ----- +----------------------------------------------------+ | ?????????????????????????????????????????????????? | | ?????????????????????????????????????????????????? | | ?????????????????????????????????????????????????? | | ?????????????????????????????????????????????????? | | ?????????????????????????????????????????????????? | | ?????????????????????????????????????????????????? | | ?????????????????????????????????????????????????? | | ?????????????????????????????????????????????????? | | ?????????????????????????????????????????????????? | | ?????????????????????????????????????????????????? | | ?????????????????????????????????????????????????? | | ???????????????#####?#####???????????????????????? | | ??????????????###############????????????????????? | | ???????????###### #####"######???????????????????? | | ???????????##### # ### " "####??????????????????? | | ???????????## " #"""""###??????????????????? | | ???????????### ! " "###?????????????????? | | ??######?##### """" # "###?????????????????? | | ?############# # ""##?????????????????? | | ?### ##### " # ##?????????????????? | | ?## ### " #### ##?????????????????? | | ### " #### # ## ???? ??????????? | | ### ######### # ## ??? ##??????????? | | ## ### ######## # # ? ###??????????? | | ## #######??## ## ## ###???????????? | | ###########?### @ ####????????????? | | #######?????## ##??????????????? | | ### ##?????### R##??????????????? | | ###????## ###?????????????? | | ###????### ##?????????????? | | ##????## ## ### ###??????????? | | # ###????### ## #### ##??????????? | | # ####????### ## ?? ##??????????? | | # ###?????? ### ???? ??????????? | | # ###????## # ##?????? ## ???????????? | | # ####???## ## ?????????#####????????????? | | # ####?? # ?????????####?????????????? | | # ##### ? ##??????????????????????????? | | ## ####?????????????????????????????????? | | ### # ##?????????????????????????????????? | | ### ###???????????????????????????????? | | ### ## ##???????????????????????????????? | | ## ### ##???????????????????????????????? | | ####? ###???????????????????????????????? | | ###?? ###???????????????????????????????? | | ###?????????????????????????????????????? | | ##?????????????????????????????????????? | | ##?????????????????????????????????????? | | ## ""###????????????????????????????????????? | | ### ## ""###????????????????????????????????????? | +----------------------------------------------------+ Best States ------------- Heat Dissipation 25 Energy Generation 14 Energy Capacity 160 Matter Stores 300 Matter Capacity 300 Sight Range 16 Terrain Scan Density 10 Evasion (%) 42 Recoil Reduction 2 Item Schematics ----------------- None Robot Schematics ------------------ None Fabricated ------------ Nothing Alien Tech Used ----------------- None Achievements -------------- None Challenges ------------ None Game ------ Seed WarpPersonalBay Manual? 0 Play Time 00:14:32 Cumulative 12.7 hours Start 2024.11.30 @ 00:12:23 End 2024.11.30 @ 00:24:17 Sessions 1 Manual Loads 0 Difficulty Rogue Special Mode None Game No. 16 Rogue 16 Adventurer 0 Explorer 0 Win Type - Total 0 Types 0/0/0/0/0/0/0/0/0 Lore% 8 Gallery% 16 Achievement% 17 Wizard Run 0 Options --------- Layout 1 ASCII 0 Keyboard 0 Movement Mouse Keybinds 0 Fullscreen 2 Font 24/Tamsyn Map View 50x35 Zoom Use 0% Tactical HUD 0 Map Filters NONE Filters NONE Steam 0 RUN: d42d12a6-89d0-4a10-93e1-472be85c11fa